Cogmind - Beta 11.1 @@@ ROGUE MODE // 2022.05.12 @ 18:57:38 Player: Olga Result: Self-destructed Performance ------------- Evolutions (1) 500 Regions Visited (3) 600 Robots Destroyed (6) 30 Value Destroyed (60) 60 Prototype IDs (0) 0 Alien Tech Used (0) 0 Bonus (0) 0 TOTAL SCORE: 1190 Bonus ------- None Cogmind --------- Core Integrity 175/400 Matter 161/300 Energy 100/100 System Corruption 0% Temperature Cool (0) Movement Core (100) Ox1 Location -9/Materials Parts ------- > --- POWER (1) -------- (None) > --- PROPULSION (4) --- (None) > --- UTILITY (2) ------ Small Storage Unit > --- WEAPON (2) ------- (None) > --- INVENTORY (8) ---- Light Ion Engine Sensor Array Hacking Suite Hacking Suite System Shield System Shield Light Assault Rifle Datajack Peak State ------------ > --- POWER ------------ Light Ion Engine > --- PROPULSION ------- Flight Unit Flight Unit > --- UTILITY ---------- Sensor Array Hacking Suite > --- WEAPON ----------- Light Assault Rifle Grenade Launcher > --- INVENTORY -------- Small Storage Unit System Shield System Shield System Shield Assault Rifle [Rating: 10] Favorites ----------- Power Light Ion Engine Engine Light Ion Engine Propulsion Flight Unit Treads Light Treads Leg Aluminum Leg Flight Unit Flight Unit Utility Sensor Array Device Sensor Array Storage Small Storage Unit Hackware Hacking Suite Weapon Grenade Launcher Energy Gun EM Pulse Gun Ballistic Gun Light Assault Rifle Launcher Grenade Launcher Build | -11 -10 -10 -9 ------- Run | Scr Mat Min Mat Slots Evolved 2 | . . . 2 Power . | . . . . Propulsion 2 | . . . 2 Utility . | . . . . Weapon . | . . . . Parts Attached 12 | 3 1 3 5 Power 1 | . . . 1 Engine 1 | . . . 1 Core . | . . . . Reactor . | . . . . Propulsion 4 | 2 . 2 . Treads 2 | 2 . . . Leg . | . . . . Wheel . | . . . . Hover . | . . . . Flight 2 | . . 2 . Utility 3 | . 1 . 2 Device 1 | . 1 . . Storage 1 | . . . 1 Processor . | . . . . Hackware 1 | . . . 1 Protection . | . . . . Artifact . | . . . . Weapon 4 | 1 . 1 2 Energy Gun . | . . . . Energy Cannon . | . . . . Ballistic Gun 2 | 1 . . 1 Ballistic Cannon . | . . . . Launcher 2 | . . 1 1 Special Weapon . | . . . . Impact Weapon . | . . . . Slashing Weapon . | . . . . Piercing Weapon . | . . . . Special Melee Weapon . | . . . . Unidentified Prototypes . | . . . . Parts Lost 2 | . . . 2 Power . | . . . . Propulsion 1 | . . . 1 Utility 1 | . . . 1 Weapon . | . . . . Highest Loss Streak 2 | . . . 2 To Critical Strikes . | . . . . Average Slot Usage (%) 56 | . 61 65 52 Engine 3 | . . . 6 Treads 7 | . 28 11 . Flight 12 | . . 11 16 Device 8 | . 4 14 6 Storage 2 | . . . 4 Hackware 2 | . . . 4 Ballistic Gun 12 | . 28 14 7 Launcher 7 | . . 14 6 Naked Turns . | . . . . Heaviest Build 8 | 3 4 6 8 Greatest Support 8 | 3 3 8 8 Greatest Overweight (x) 1 | . 1 1 1 Average Overweight (x) . | . . . . Largest Inventory Capacity 8 | 8 5 5 8 Average Capacity 5 | 6 5 5 6 Most Carried 8 | 8 3 5 8 Average Carried 4 | 5 2 4 5 Final Capacity 8 | 5 5 5 8 Final Carried 8 | 2 3 5 8 Class Distribution -------------------- 100% | Mutant Dominant Class ---------------- Mutant | -10/Mines Mutant | -9/Materials Resources | -11 -10 -10 -9 ----------- Run | Scr Mat Min Mat Matter Collected 231 | 186 . 45 . Remotely . | . . . . Salvage Created 65 | . . 65 . Parts 13 | . . 13 . Haulers Intercepted . | . . . . Recyclers Shooed . | . . . . Parts Field Recycled . | . . . . Retrieved Matter . | . . . . Parts Self-Destructed . | . . . . Prevented . | . . . . Kills | -11 -10 -10 -9 ------- Run | Scr Mat Min Mat Combat Hostiles Destroyed 6 | . . 6 . Guns 2 | . . 2 . AOE 4 | . . 4 . Classes Destroyed 1 | . . 1 . Swarmer 6 | . . 6 . Best Kill Streak 6 | . . 6 . Combat Bots Only 6 | . . 6 . Max Kills in Single Turn 3 | . . 3 . Gunslinging . | . . . . Exploded 3 | . . 3 . Melee . | . . . . Uniques/NPCs Destroyed . | . . . . Combat | -11 -10 -10 -9 -------- Run | Scr Mat Min Mat Damage Taken 505 | . 57 94 354 Core 241 | . . 16 225 Absorbed by Shields . | . . . . Core Remaining (%) 96 | 100 . 93 . Volleys Fired 8 | . . 5 3 Largest 2 | . . 2 1 Hottest 50 | . . 50 30 Shots Fired 10 | . . 7 3 Gun 5 | . . 5 . Cannon . | . . . . Launcher 5 | . . 2 3 Special . | . . . . Kinetic 5 | . . 5 . Thermal . | . . . . Explosive 5 | . . 2 3 Electromagnetic . | . . . . Robot Hit Streak 2 | . . 2 . Robot Miss Streak 1 | . . 1 . Penetration Max . | . . . . Secondary Targets . | . . . . Shots Hit Robots 4 | . . 4 . Core Hits 5 | . . 5 . Critical Kills 1 | . . 1 . Critical Parts Destroyed . | . . . . Critical Strikes 1 | . . 1 . Destroy 1 | . . 1 . Melee Attacks . | . . . . Impact . | . . . . Slashing . | . . . . Piercing . | . . . . Sneak Attacks . | . . . . Combat Hostiles . | . . . . Follow-up Attacks . | . . . . Damage Inflicted 203 | . . 203 . Guns 28 | . . 28 . Cannons . | . . . . Explosions 175 | . . 175 . Melee . | . . . . Ramming . | . . . . Kinetic 28 | . . 28 . Thermal . | . . . . Explosive 175 | . . 175 . Electromagnetic . | . . . . Impact . | . . . . Slashing . | . . . . Piercing . | . . . . Highest Corruption . | . . . . Average Corruption . | . . . . Corruption Purged . | . . . . Corruption Blocked . | . . . . Overload Shots . | . . . . Overflow Damage 14 | . . 14 . Projectiles . | . . . . Explosions 14 | . . 14 . Melee . | . . . . Knockbacks . | . . . . Impact . | . . . . Kinetic . | . . . . Secondary . | . . . . Self-Inflicted Damage 21 | . . 21 . Shots 1 | . . 1 . Rammed 1 | . . . 1 Targets Rammed 1 | . . . 1 Kicked . | . . . . Crushed . | . . . . Highest Temperature . | . . . . Average Temperature . | . . . . Received Heat Transfer 129 | . 30 . 99 Siege Activations . | . . . . Robots Corrupted . | . . . . Combat Hostiles . | . . . . Parts Fried . | . . . . Impact Corruptions . | . . . . Robots Melted . | . . . . Combat Hostiles . | . . . . Parts Melted . | . . . . Heat Transferred . | . . . . Parts Sabotaged . | . . . . Parts Stolen . | . . . . Parts Stripped . | . . . . Power Chain Reactions . | . . . . Missiles Intercepted . | . . . . Alert | -11 -10 -10 -9 ------- Run | Scr Mat Min Mat Peak Influence 179 | . . 179 151 Initial 69 | . . . 69 Average 113 | . . 160 119 Maximum Alert Level . | . . . . Low Security (%) 100 | 100 100 100 100 Level 1 . | . . . . Level 2 . | . . . . Level 3 . | . . . . Level 4 . | . . . . Level 5 . | . . . . High Security . | . . . . Max Security . | . . . . Squads Dispatched . | . . . . Investigation . | . . . . Extermination . | . . . . Reinforcement . | . . . . Assault . | . . . . Garrison . | . . . . Intercept . | . . . . Searches Triggered . | . . . . Construction Impeded . | . . . . Haulers Reinforced . | . . . . Active Scanning Responses . | . . . . Cargo Convoy Interrupts . | . . . . Stealth | -11 -10 -10 -9 --------- Run | Scr Mat Min Mat Distress Signals 1 | . . . 1 Communications Jammed . | . . . . Distress Signals . | . . . . Times Spotted 12 | . 3 6 3 Peak Tracking Total 3 | . 3 3 3 Tactical Retreats . | . . . . Traps | -11 -10 -10 -9 ------- Run | Scr Mat Min Mat Traps Triggered . | . . . . Indirectly . | . . . . Trap Hack Attempts . | . . . . Triggered . | . . . . Disarmed . | . . . . Reprogrammed . | . . . . Reused . | . . . . Traps Extracted . | . . . . Installed . | . . . . Triggered . | . . . . Machines | -11 -10 -10 -9 ---------- Run | Scr Mat Min Mat Machines Disabled . | . . . . Max in Single Turn . | . . . . Machines Sabotaged . | . . . . Garrisons Compromised . | . . . . Overloaded Fab Kills . | . . . . Hacking | -11 -10 -10 -9 --------- Run | Scr Mat Min Mat Machines Accessed 4 | . . . 4 Terminals 4 | . . . 4 Fabricators . | . . . . Repair Stations . | . . . . Recycling Units . | . . . . Scanalyzers . | . . . . Garrison Access . | . . . . Total Hacks 10 | . . . 10 Successful 6 | . . . 6 Failed 4 | . . . 4 Catastrophic . | . . . . Database Lockouts . | . . . . Manual 10 | . . . 10 Terminals 10 | . . . 10 Fabricators . | . . . . Repair Stations . | . . . . Recycling Units . | . . . . Scanalyzers . | . . . . Garrison Access . | . . . . Terminal Hacks 3 | . . . 3 Level Access Points 1 | . . . 1 Terminal Index 1 | . . . 1 Zone Layout 1 | . . . 1 Fabricator Hacks . | . . . . Repair Station Hacks . | . . . . Recycling Unit Hacks . | . . . . Scanalyzer . | . . . . Garrison Access Hacks . | . . . . Unauthorized Hacks 3 | . . . 3 Terminals 3 | . . . 3 Botnet 2 | . . . 2 Operators 1 | . . . 1 Fabricators . | . . . . Repair Stations . | . . . . Recycling Units . | . . . . Scanalyzers . | . . . . Garrison Access . | . . . . Data Cores Recovered . | . . . . Used . | . . . . Hacking Detections 3 | . . . 3 Full Trace Events . | . . . . Feedback Events . | . . . . Feedback Blocked . | . . . . Robot Schematics Acquired . | . . . . Robots Built . | . . . . Authchips . | . . . . Time . | . . . . Total Robot Build Rating . | . . . . Part Schematics Acquired . | . . . . Parts Built . | . . . . Authchips . | . . . . Time . | . . . . Total Part Build Rating . | . . . . Parts Repaired . | . . . . Time . | . . . . Parts Recycled . | . . . . Recycled Matter . | . . . . Retrieved Matter . | . . . . Retrieved Components . | . . . . Parts Scanalyzed . | . . . . Part Schematics Acquired . | . . . . Parts Damaged . | . . . . Bothacking | -11 -10 -10 -9 ------------ Run | Scr Mat Min Mat Used RIF Installer . | . . . . Robots Hacked . | . . . . Non-combat . | . . . . Combat . | . . . . Robot Hacks Applied . | . . . . Relay Couplers Released . | . . . . Fabnet Peak Effective % . | . . . . Robots Rewired . | . . . . Allies Hacked . | . . . . Hacks Repelled . | . . . . Allies | -11 -10 -10 -9 -------- Run | Scr Mat Min Mat Total Allies . | . . . . Largest Group . | . . . . Highest-Rated Group . | . . . . Highest-Rated Ally . | . . . . Total Orders . | . . . . Ally Attacks . | . . . . Total Damage . | . . . . Kills . | . . . . Allies Corrupted . | . . . . Allies Melted . | . . . . Intel | -11 -10 -10 -9 ------- Run | Scr Mat Min Mat Robot Analysis Total . | . . . . Derelict Logs Recovered . | . . . . Drone Launches . | . . . . Drone Recoveries . | . . . . Exploration | -11 -10 -10 -9 ------------- Run | Scr Mat Min Mat Turns Passed 200 | 8 22 56 114 Spaces Moved 265 | 1 32 47 185 Core 70 | 1 32 9 28 Treads . | . . . . Legs . | . . . . Wheels . | . . . . Hover . | . . . . Flight 195 | . . 38 157 Fastest Speed 37 | 50 50 37 37 Average Speed 54 | 50 62 80 46 Slowest Speed 120 | 50 100 120 100 Overloaded Moves . | . . . . Propulsion Burnouts . | . . . . Robots Hopped 9 | . . 1 8 Cave-ins Triggered . | . . . . Exploration Rate (%) 12 | 2 13 19 14 Regions Visited 3 Branch Regions 1 Pre-discovered Areas . | . . . . Known Exits Taken . | . . . . Unknown Exits Taken 3 | 1 1 1 . Scrap Searched . | . . . . Spaces Dug . | . . . . Terrain Destroyed 34 | . . 13 21 Melee . | . . . . Projectile . | . . . . AOE 34 | . . 13 21 Terrain Rammed . | . . . . Walls Destroyed . | . . . . Machines Disabled . | . . . . Actions | -11 -10 -10 -9 --------- Run | Scr Mat Min Mat Total 303 | 12 33 55 203 Wait 3 | . . . 3 Move 245 | . 31 44 170 Hop 8 | . . 1 7 Pick Up 7 | . 1 . 6 Fast Attach 4 | . 1 2 1 Attach 4 | 3 . . 1 Detach 7 | 3 . 2 2 Swap 4 | . . 1 3 Drop 12 | 6 . . 6 Fire 8 | . . 5 3 Melee . | . . . . Ram 1 | . . . 1 Kick . | . . . . Crush . | . . . . Escape Stasis . | . . . . Rewire . | . . . . Trap . | . . . . Miscellaneous . | . . . . Route ------- -11/Scrapyard -10/Materials -10/Mines -9/Materials (discovered 3 exits: Mat x3) History --------- Turn | Location | Event 9 | -11/Scrapyard | Discovered new exit (range 0) 9 | -11/Scrapyard | Entered Materials 22 | -10/Materials | Discovered new exit (range 9) 31 | -10/Materials | Entered Mines 45 | -10/Mines | Discovered new exit (range 9) 68 | -10/Mines | Met a Derelict bent on vengeance 87 | -10/Mines | Entered Materials 87 | -9/Materials | Evolved 2 slots: Propulsion x2 118 | -9/Materials | Identified exit to Materials 201 | -9/Materials | Core integrity fell below 50% 201 | -9/Materials | Self-destructed Last Messages --------------- 00120_ Dropped Lgt. Treads. 00122_ Acquired Hacking Suite. 00124_ Acquired System Shield. 00128_ Dropped System Shield. 00129_ Dropped Assault Rifle. 00129_ Acquired Hacking Suite. 00158_ Acquired Datajack. 00164_ The unstable cave ceiling collapses. 00168_ Dropped Grenade Launcher. 00171_ Flight Unit destroyed. 00171_ Hacking Suite destroyed. 00171_ Dropped Flight Unit. 00172_ U-05 Engineer lays Concrete. 00177_ U-05 Engineer builds a Wall. 00183_ Connecting with Terminal... >>Layout(Zone) Retrieving Zone 2C layout... Downloaded map data. 00187_ Slammed into Y-45 Defender. 00200_ T-07 Excavator suffers critical hit (Burn). Map ----- +----------------------------------------------------+ | ???????????